fUST/lending_fUST_20250430
["ID","MTS","AMOUNT","RATE_DAILY","PERIOD"]
[359451197,1746025834834,-400.0,0.00038356,12]
[359451198,1746025834843,-400.0,0.00038356,12]
[359451199,1746025834853,-400.0,0.00038356,12]
[359451200,1746025834865,-400.0,0.00038356,12]
[359451201,1746025834874,-400.0,0.00038356,12]
[359451202,1746025834886,-400.0,0.00038356,12]
[359451203,1746025834896,-400.0,0.00038356,12]
[359451204,1746025834906,-400.0,0.00038356,12]
[359451205,1746025834916,-400.0,0.00038356,12]
[359451206,1746025834926,-400.0,0.00038356,12]
[359451207,1746025834936,-400.0,0.00038356,12]
[359451208,1746025834945,-400.0,0.00038356,12]
[359451209,1746025834955,-400.0,0.00038356,12]
[359451210,1746025834964,-400.0,0.00038356,12]
[359451211,1746025834974,-400.0,0.00038356,12]
[359451212,1746025834983,-400.0,0.00038356,12]
[359451213,1746025834992,-400.0,0.00038356,12]
[359451214,1746025835002,-400.0,0.00038356,12]
[359451215,1746025835012,-400.0,0.00038356,12]
[359451216,1746025835021,-400.57941477,0.00038356,12]
[359451217,1746025835030,-400.0,0.00038356,12]
[359451218,1746025835040,-400.0,0.00038356,12]
[359451219,1746025835049,-838.44,0.00038356,12]
[359451220,1746025835059,-838.44,0.00038356,12]
[359451221,1746025835069,-838.44,0.00038356,12]
[359451222,1746025835078,-838.44,0.00038356,12]
[359451223,1746025835088,-838.44,0.00038356,12]
[359451224,1746025835098,-400.0,0.00038356,12]
[359451225,1746025835107,-400.0,0.00038356,12]
[359451226,1746025835117,-400.0,0.00038356,12]
[359451227,1746025835126,-400.0,0.00038356,12]
[359451228,1746025835138,-400.0,0.00038356,12]
[359451229,1746025835148,-400.0,0.00038356,12]
[359451230,1746025835157,-400.0,0.00038356,12]
[359451231,1746025835167,-400.0,0.00038356,12]
[359451232,1746025835176,-400.0,0.00038356,12]
[359451233,1746025835186,-400.0,0.00038356,12]
[359451234,1746025835196,-400.0,0.00038356,12]
[359451235,1746025835205,-400.0,0.00038356,12]
[359451236,1746025835215,-400.0,0.00038356,12]
[359451237,1746025835224,-400.0,0.00038356,12]
[359451238,1746025835233,-400.0,0.00038356,12]
[359451239,1746025835243,-400.0,0.00038356,12]
[359451240,1746025835253,-400.0,0.00038356,12]
[359451241,1746025835263,-400.0,0.00038356,12]
[359451242,1746025835272,-400.0,0.00038356,12]
[359451243,1746025835282,-400.0,0.00038356,12]
[359451244,1746025835291,-400.0,0.00038356,12]
[359451245,1746025835301,-400.0,0.00038356,12]
[359451246,1746025835311,-400.0,0.00038356,12]
[359451247,1746025835320,-400.0,0.00038356,12]
[359451248,1746025835330,-400.0,0.00038356,12]
[359451249,1746025835339,-400.0,0.00038356,12]
[359451250,1746025835349,-394.36436021,0.00038356,12]
[359451251,1746025835359,-400.0,0.00038356,12]
[359451252,1746025835369,-400.0,0.00038356,12]
[359451253,1746025835379,-207.26756496,0.00038356,12]
[359451254,1746025835390,-161.95817738,0.00038356,2]
[359451255,1746025835400,-2092.67,0.00038372,12]
[359451256,1746025835410,-400.0,0.00038372,12]
[359451257,1746025835420,-473.28201244,0.00038372,12]
[359451258,1746025835430,-400.0,0.00038372,12]
[359451259,1746025835439,-400.0,0.00038372,12]
[359451260,1746025835449,-838.44,0.00038372,12]
[359451261,1746025835458,-500.8,0.00038372,12]
[359451262,1746025835468,-400.0,0.00038372,12]
[359451263,1746025835478,-500.0,0.00038373,5]
[359451264,1746025835487,-444.20089274,0.00038373,5]
[359451265,1746025835496,-500.0,0.00038373,5]
[359451266,1746025835506,-500.0,0.00038373,5]
[359451267,1746025835515,-500.0,0.0003842,7]
[359451268,1746025835526,-500.0,0.00038423,7]
[359451269,1746025835536,-657.4520521,0.00038499,7]
[359451270,1746025835545,-200.0,0.000385,120]
[359451271,1746025835555,-565.12,0.000386,2]
[359451272,1746025835565,-13791.0553047,0.00038607,3]
[359451273,1746025835575,-200.70394133,0.00038607,3]
[359451274,1746025835585,-400.0,0.00038615,12]
[359451275,1746025835595,-400.0,0.00038615,12]
[359451276,1746025835605,-400.0,0.00038615,12]
[359451277,1746025835614,-400.0,0.00038615,12]
[359451278,1746025835624,-400.0,0.00038615,12]
[359451279,1746025835637,-400.0,0.00038616,12]
[359451280,1746025835646,-401.53,0.00038616,12]
[359451281,1746025835656,-400.0,0.00038616,12]
[359451282,1746025835666,-400.0,0.00038616,12]
[359451283,1746025835675,-400.0,0.00038616,12]
[359451284,1746025835684,-400.0,0.00038616,12]
[359451285,1746025835694,-400.0,0.00038616,12]
[359451286,1746025835703,-400.0,0.00038616,12]
[359451287,1746025835713,-400.0,0.00038616,12]
[359451288,1746025835723,-400.0,0.00038616,12]
[359451289,1746025835732,-400.0,0.00038616,12]
[359451290,1746025835742,-400.0,0.00038616,12]
[359451291,1746025835752,-400.0,0.00038616,12]
[359451292,1746025835761,-271.27572786,0.00038616,12]
[359451293,1746025835771,-400.0,0.00038616,12]
[359451294,1746025835781,-500.0,0.00038616,12]
[359451295,1746025835790,-497.19,0.00038616,12]
[359451296,1746025835800,-400.0,0.00038616,12]
[359451297,1746025835810,-400.0,0.00038616,12]
[359451298,1746025835820,-400.0,0.00038616,12]
[359451299,1746025835829,-798.19,0.00038616,12]
[359451300,1746025835839,-400.0,0.00038616,12]
[359451301,1746025835850,-730.58,0.00038616,12]
[359451302,1746025835863,-329.3345738,0.00038616,12]
[359451303,1746025835873,-400.0,0.00038616,12]
[359451304,1746025835883,-2092.67,0.00038617,12]
[359451305,1746025835894,-400.0,0.00038617,12]
[359451306,1746025835903,-838.44,0.00038617,12]
[359451307,1746025835913,-400.0,0.00038617,12]
[359451308,1746025835922,-221.40939691,0.00038618,2]
[359451309,1746025835932,-900.0,0.00038712,60]
[359451310,1746025835941,-500.0,0.00038772,7]
[359451311,1746025835951,-500.0,0.000388,7]
[359451312,1746025835961,-160.0,0.00038852,7]
[359451313,1746025835970,-182.04053198,0.00038852,7]
[359451314,1746025835980,-500.0,0.00038863,7]
[359451315,1746025835990,-390.90811292,0.00038889,2]
[359451316,1746025836000,-500.0,0.00038891,7]
[359451317,1746025836010,-400.0,0.00038931,12]
[359451318,1746025836019,-400.0,0.00038931,12]
[359451319,1746025836029,-400.0,0.00038931,12]
[359451320,1746025836038,-400.0,0.00038931,12]
[359451321,1746025836047,-275.49,0.00038931,12]
[359451322,1746025836057,-400.0,0.00038932,12]
[359451323,1746025836066,-401.53,0.00038932,12]
[359451324,1746025836075,-400.0,0.00038932,12]
[359451325,1746025836084,-400.0,0.00038932,12]
[359451326,1746025836094,-400.0,0.00038932,12]
[359451327,1746025836104,-400.0,0.00038932,12]
[359451328,1746025836114,-400.0,0.00038932,12]
[359451329,1746025836123,-400.0,0.00038932,12]
[359451330,1746025836133,-400.0,0.00038932,12]
[359451331,1746025836143,-400.0,0.00038932,12]
[359451332,1746025836153,-400.0,0.00038932,12]
[359451333,1746025836163,-400.0,0.00038932,12]
[359451334,1746025836173,-400.0,0.00038932,12]
[359451335,1746025836183,-200.0,0.00038932,12]
[359451336,1746025836192,-500.0,0.00038932,12]
[359451337,1746025836202,-497.19,0.00038932,12]
[359451338,1746025836212,-400.0,0.00038932,12]
[359451339,1746025836222,-400.0,0.00038932,12]
[359451340,1746025836232,-798.19,0.00038932,12]
[359451341,1746025836243,-400.0,0.00038932,12]
[359451342,1746025836253,-730.58,0.00038932,12]
[359451343,1746025836263,-400.0,0.00038932,12]
[359451344,1746025836273,-764.318588,0.00038933,2]
[359451345,1746025836282,-2092.67,0.00038988,12]
[359451346,1746025836292,-400.0,0.00038988,12]
[359451347,1746025836302,-400.0,0.00038988,12]
[359451348,1746025836312,-400.0,0.00038988,12]
[359451349,1746025836322,-400.0,0.00038988,12]
[359451350,1746025836332,-400.0,0.00038988,12]
[359451351,1746025836342,-838.44,0.00038988,12]
[359451352,1746025836352,-400.0,0.00038988,12]
[359451353,1746025836362,-400.0,0.00038998,12]
[359451354,1746025836371,-401.53,0.00038998,12]
[359451355,1746025836381,-400.0,0.00038998,12]
[359451356,1746025836391,-510.22259369,0.00038998,12]
[359451357,1746025836401,-400.0,0.00038998,12]
[359451358,1746025836411,-400.0,0.00038998,12]
[359451359,1746025836420,-400.0,0.00038998,12]
[359451360,1746025836430,-400.0,0.00038998,12]
[359451361,1746025836440,-400.0,0.00038998,12]
[359451362,1746025836449,-400.0,0.00038998,12]
[359451363,1746025836459,-400.0,0.00038998,12]
[359451364,1746025836469,-400.0,0.00038998,12]
[359451365,1746025836479,-400.0,0.00038998,12]
[359451366,1746025836489,-500.0,0.00038998,12]
[359451367,1746025836498,-497.19,0.00038998,12]
[359451368,1746025836508,-400.0,0.00038998,12]
[359451369,1746025836518,-400.0,0.00038998,12]
[359451370,1746025836528,-798.19,0.00038998,12]
[359451371,1746025836538,-400.0,0.00038998,12]
[359451372,1746025836547,-730.58,0.00038998,12]
[359451373,1746025836557,-2092.67,0.00038998,12]
[359451374,1746025836567,-400.0,0.00038998,12]
[359451375,1746025836577,-395.56,0.00038998,12]
[359451376,1746025836586,-400.0,0.00038998,12]
[359451377,1746025836596,-400.0,0.00038998,12]
[359451378,1746025836606,-400.0,0.00038998,12]
[359451379,1746025836615,-400.0,0.00038998,12]
[359451380,1746025836624,-838.44,0.00038998,12]
[359451381,1746025836635,-400.0,0.00038998,12]
[359451382,1746025836645,-400.0,0.00038999,12]
[359451383,1746025836654,-500.0,0.00039075,7]
[359451384,1746025836664,-390.90811288,0.00039189,2]
[359451385,1746025836674,-900.0,0.0003926,60]
[359451386,1746025836685,-500.0,0.00039309,7]
[359451387,1746025836694,-500.0,0.00039392,7]
[359451388,1746025836704,-169.0,0.00039452,18]
[359451389,1746025836714,-500.0,0.00039487,7]
[359451390,1746025836723,-390.90811288,0.00039488,2]
[359451391,1746025836733,-4733.36,0.00039576,14]
[359451392,1746025836743,-300.92831776,0.00039616,2]
[359451393,1746025836752,-200.0,0.00039665,120]
[359451394,1746025836762,-13791.0553047,0.00039714,3]
[359451395,1746025836772,-200.70394133,0.00039714,3]
[359451396,1746025836781,-500.0,0.00039724,7]
[359451397,1746025836791,-300.92831777,0.00039749,2]
[359451398,1746025836800,-401.53,0.00039753,12]
[359451399,1746025836810,-401.53,0.00039753,12]
[359451400,1746025836820,-400.0,0.00039753,12]
[359451401,1746025836830,-400.0,0.00039753,12]
[359451402,1746025836839,-400.0,0.00039753,12]
[359451403,1746025836850,-244.7,0.00039753,12]
[359451404,1746025836862,-152.88,0.00039753,12]
[359451405,1746025836872,-299.28,0.00039753,12]
[359451406,1746025836883,-400.0,0.00039753,12]
[359451407,1746025836894,-400.0,0.00039753,12]
[359451408,1746025836903,-497.19,0.00039753,12]
[359451409,1746025836913,-497.19,0.00039753,12]
[359451410,1746025836922,-798.19,0.00039753,12]
[359451411,1746025836933,-798.19,0.00039753,12]
[359451412,1746025836942,-730.58,0.00039753,12]
[359451413,1746025836952,-730.58,0.00039753,12]
[359451414,1746025836962,-2092.67,0.00039753,12]
[359451415,1746025836971,-400.0,0.00039753,12]
[359451416,1746025836981,-400.0,0.00039753,12]
[359451417,1746025836990,-400.0,0.00039753,12]
[359451418,1746025836999,-400.0,0.00039753,12]
[359451419,1746025837009,-838.44,0.00039753,12]
[359451420,1746025837018,-400.0,0.00039753,12]
[359451421,1746025837028,-400.0,0.00039754,12]
[359451422,1746025837037,-400.0,0.00039761,12]
[359451423,1746025837047,-400.0,0.00039761,12]
[359451424,1746025837056,-400.0,0.00039761,12]
[359451425,1746025837066,-400.0,0.00039761,12]
[359451426,1746025837075,-2092.67,0.00039762,12]
[359451427,1746025837085,-2092.67,0.00039762,12]
[359451428,1746025837095,-400.0,0.00039762,12]
[359451429,1746025837105,-400.0,0.00039762,12]
[359451430,1746025837114,-400.0,0.00039762,12]
[359451431,1746025837135,-400.0,0.00039762,12]
[359451432,1746025837145,-838.44,0.00039762,12]
[359451433,1746025837155,-838.44,0.00039762,12]
[359451434,1746025837166,-400.0,0.00039762,12]
[359451435,1746025837176,-400.0,0.00039762,12]
[359451436,1746025837187,-13791.0553047,0.00039762,3]
[359451437,1746025837198,-200.70394133,0.00039762,3]
[359451438,1746025837208,-160.0,0.00039763,3]
[359451439,1746025837217,-401.53,0.00039763,12]
[359451440,1746025837227,-400.0,0.00039763,12]
[359451441,1746025837237,-226.42,0.00039763,12]
[359451442,1746025837246,-497.19,0.00039763,12]
[359451443,1746025837257,-798.19,0.00039763,12]
[359451444,1746025837266,-730.58,0.00039763,12]
[359451445,1746025837275,-2092.67,0.00039763,12]
[359451446,1746025837286,-400.0,0.00039763,12]
[359451447,1746025837295,-400.0,0.00039763,12]
[359451448,1746025837306,-400.0,0.00039763,12]
[359451449,1746025837317,-400.0,0.00039763,12]
[359451450,1746025837327,-838.44,0.00039763,12]
[359451451,1746025837337,-400.0,0.00039763,12]
[359451452,1746025837347,-2903.9,0.00039764,2]
[359451453,1746025837358,-2903.9,0.00039764,2]
[359451454,1746025837368,-2903.9,0.00039764,2]
[359451455,1746025837378,-2903.9,0.00039764,2]
[359451456,1746025837389,-400.0,0.00039764,12]
[359451457,1746025837399,-400.0,0.00039764,12]
[359451458,1746025837408,-401.53,0.00039772,12]
[359451459,1746025837418,-400.0,0.00039772,12]
[359451460,1746025837429,-497.19,0.00039772,12]
[359451461,1746025837439,-798.19,0.00039772,12]
[359451462,1746025837449,-730.58,0.00039772,12]
[359451463,1746025837458,-2092.67,0.00039772,12]
[359451464,1746025837468,-2092.67,0.00039772,12]
[359451465,1746025837478,-400.0,0.00039772,12]
[359451466,1746025837489,-432.58,0.00039772,12]
[359451467,1746025837499,-400.0,0.00039772,12]
[359451468,1746025837509,-400.0,0.00039772,12]
[359451469,1746025837520,-400.0,0.00039772,12]
[359451470,1746025837531,-301.09360784,0.00039772,12]
[359451471,1746025837541,-391.78,0.00039772,12]
[359451472,1746025837552,-838.44,0.00039772,12]
[359451473,1746025837562,-838.44,0.00039772,12]
[359451474,1746025837572,-400.0,0.00039772,12]
[359451475,1746025837582,-268.36,0.00039772,12]
[359451476,1746025837591,-500.0,0.00039773,5]
[359451477,1746025837601,-500.0,0.00039773,5]
[359451478,1746025837611,-500.94710656,0.00039773,5]
[359451479,1746025837621,-500.0,0.00039773,5]
[359451480,1746025837630,-501.13803781,0.00039773,5]
[359451481,1746025837641,-503.40112922,0.00039773,5]
[359451482,1746025837651,-500.0,0.00039773,5]
[359451483,1746025837661,-500.0,0.00039773,5]
[359451484,1746025837670,-150.0,0.00039773,5]
[359451485,1746025837680,-500.0,0.00039773,5]
[359451486,1746025837690,-404.71967358,0.00039773,3]
[359451487,1746025837700,-505.66836437,0.00039773,5]
[359451488,1746025837710,-500.0,0.00039773,5]
[359451489,1746025837720,-500.0,0.00039773,5]
[359451490,1746025837730,-4010.71741723,0.00039773,2]
[359451492,1746025837740,-10024.36329643,0.00039773,2]
[359451494,1746025837784,-451.79522765,0.00039773,2]
[359451495,1746025837795,-5487.91000608,0.00039773,2]
[359451506,1746025838428,-400.0,0.00038356,12]
[359451507,1746025838439,-400.0,0.00038356,12]
[359451508,1746025838449,-400.0,0.00038356,12]
[359451509,1746025838460,-400.0,0.00038356,12]
[359451510,1746025838471,-400.0,0.00038356,12]
[359451511,1746025838481,-202.22389928,0.00038356,12]
[359451512,1746025838491,-11789.38301736,0.00039773,2]
[359451513,1746025838610,-503.48035962,0.0003978,30]
[359451514,1746025838621,-390.90811288,0.00039788,2]
[359451515,1746025838631,-500.0,0.0003989,120]
[359451516,1746025838642,-500.0,0.0003989,120]
[359451517,1746025838651,-592.0,0.0003989,120]
[359451518,1746025838661,-611.21663,0.00039989,4]
[359451519,1746025838671,-13791.0553047,0.0003999,3]
[359451520,1746025838681,-200.70394133,0.0003999,3]
[359451521,1746025838691,-500.0,0.0004,120]
[359451522,1746025838701,-500.0,0.0004,120]
[359451523,1746025838711,-500.0,0.0004,120]
[359451524,1746025838721,-500.0,0.0004,120]
[359451525,1746025838731,-672.777,0.0004,120]
[359451526,1746025838740,-390.90811288,0.00040087,2]
[359451527,1746025838751,-163.86021914,0.00040087,28]
[359451528,1746025838761,-501.29314329,0.00040088,120]
[359451529,1746025838771,-243.49341231,0.000401,19]
[359451530,1746025838780,-2092.67,0.00040145,12]
[359451531,1746025838790,-838.44,0.00040145,12]
[359451532,1746025838800,-401.53,0.00040153,12]
[359451533,1746025838810,-400.0,0.00040153,12]
[359451534,1746025838819,-497.19,0.00040153,12]
[359451535,1746025838829,-798.19,0.00040153,12]
[359451536,1746025838839,-730.58,0.00040153,12]
[359451537,1746025838849,-400.0,0.00040153,12]
[359451538,1746025838862,-400.0,0.00040155,12]
[359451539,1746025838881,-2092.67,0.00040161,12]
[359451540,1746025838895,-838.44,0.00040161,12]
[359451541,1746025838906,-400.0,0.00040162,12]
[359451542,1746025838917,-13791.0553047,0.00040163,3]
[359451543,1746025838928,-200.70394133,0.00040163,3]
[359451544,1746025838938,-401.53,0.00040163,12]
[359451545,1746025838949,-401.53,0.00040163,12]
[359451546,1746025838959,-400.0,0.00040163,12]
[359451547,1746025838969,-400.0,0.00040163,12]
[359451548,1746025838979,-497.19,0.00040163,12]
[359451549,1746025838989,-497.19,0.00040163,12]
[359451550,1746025839000,-798.19,0.00040163,12]
[359451551,1746025839010,-798.19,0.00040163,12]
[359451552,1746025839020,-730.58,0.00040163,12]
[359451553,1746025839031,-730.58,0.00040163,12]
[359451554,1746025839041,-2092.67,0.00040163,12]
[359451555,1746025839051,-400.0,0.00040163,12]
[359451556,1746025839061,-838.44,0.00040163,12]
[359451557,1746025839071,-400.0,0.00040164,12]
[359451558,1746025839081,-400.0,0.00040164,12]
[359451559,1746025839091,-400.0,0.00040164,12]
[359451560,1746025839101,-400.0,0.00040164,12]
[359451561,1746025839111,-401.53,0.00040164,12]
[359451562,1746025839123,-532.58,0.00040164,12]
[359451563,1746025839133,-497.19,0.00040164,12]
[359451564,1746025839145,-798.19,0.00040164,12]
[359451565,1746025839155,-730.58,0.00040164,12]
[359451566,1746025839165,-400.0,0.00040172,12]
[359451567,1746025839175,-2092.67,0.00040172,12]
[359451568,1746025839185,-400.0,0.00040172,12]
[359451569,1746025839195,-484.6,0.00040172,12]
[359451570,1746025839205,-838.44,0.00040172,12]
[359451571,1746025839215,-150.0,0.00040173,5]
[359451572,1746025839226,-150.0,0.00040173,5]
[359451573,1746025839235,-401.53,0.00040173,12]
[359451574,1746025839245,-401.53,0.00040173,12]
[359451575,1746025839255,-401.53,0.00040173,12]
[359451576,1746025839265,-401.53,0.00040173,12]
[359451577,1746025839275,-497.19,0.00040173,12]
[359451578,1746025839285,-497.19,0.00040173,12]
[359451579,1746025839295,-497.19,0.00040173,12]
[359451580,1746025839304,-497.19,0.00040173,12]
[359451581,1746025839314,-798.19,0.00040173,12]
[359451582,1746025839324,-798.19,0.00040173,12]
[359451583,1746025839334,-798.19,0.00040173,12]
[359451584,1746025839344,-798.19,0.00040173,12]
[359451585,1746025839354,-730.58,0.00040173,12]
[359451586,1746025839365,-730.58,0.00040173,12]
[359451587,1746025839375,-730.58,0.00040173,12]
[359451588,1746025839387,-730.58,0.00040173,12]
[359451589,1746025839397,-2092.67,0.00040173,12]
[359451590,1746025839406,-2092.67,0.00040173,12]
[359451591,1746025839416,-2092.67,0.00040173,12]
[359451592,1746025839427,-2092.67,0.00040173,12]
[359451593,1746025839437,-2092.72,0.00040173,12]
[359451594,1746025839447,-838.44,0.00040173,12]
[359451595,1746025839458,-838.44,0.00040173,12]
[359451596,1746025839468,-838.44,0.00040173,12]
[359451597,1746025839477,-838.44,0.00040173,12]
[359451598,1746025839488,-838.62,0.00040173,12]
[359451599,1746025839498,-531.14568577,0.00040174,15]
[359451600,1746025839507,-400.0,0.00040174,12]
[359451601,1746025839517,-199.212523,0.00040174,12]
[359451602,1746025839527,-401.53,0.00040174,12]
[359451603,1746025839538,-401.53,0.00040174,12]
[359451604,1746025839547,-401.53,0.00040174,12]
[359451605,1746025839557,-401.53,0.00040174,12]
[359451606,1746025839567,-401.53,0.00040174,12]
[359451607,1746025839577,-401.77,0.00040174,12]
[359451608,1746025839588,-497.19,0.00040174,12]
[359451609,1746025839597,-497.19,0.00040174,12]
[359451610,1746025839607,-497.19,0.00040174,12]
[359451611,1746025839617,-497.19,0.00040174,12]
[359451612,1746025839627,-497.19,0.00040174,12]
[359451613,1746025839637,-497.31,0.00040174,12]
[359451614,1746025839647,-798.19,0.00040174,12]
[359451615,1746025839657,-798.19,0.00040174,12]
[359451616,1746025839668,-798.19,0.00040174,12]
[359451617,1746025839678,-798.19,0.00040174,12]
[359451618,1746025839688,-798.19,0.00040174,12]
[359451619,1746025839700,-798.37,0.00040174,12]
[359451620,1746025839712,-730.58,0.00040174,12]
[359451621,1746025839722,-730.58,0.00040174,12]
[359451622,1746025839733,-730.58,0.00040174,12]
[359451623,1746025839743,-730.58,0.00040174,12]
[359451624,1746025839755,-730.58,0.00040174,12]
[359451625,1746025839766,-730.58,0.00040174,12]
[359451626,1746025839776,-151.0,0.00040175,14]
[359451627,1746025839786,-151.0,0.00040175,14]
[359451628,1746025839796,-151.0,0.00040175,14]
[359451629,1746025839811,-286.867645,0.00040175,14]
[359451630,1746025839821,-151.0,0.00040175,14]
[359451631,1746025839831,-151.0,0.00040175,14]
[359451632,1746025839841,-155.654734,0.00040175,14]
[359451633,1746025839854,-151.0,0.00040175,14]
[359451634,1746025839864,-151.0,0.00040175,14]
[359451635,1746025839874,-155.245476,0.00040175,14]
[359451636,1746025839884,-155.245476,0.00040175,14]
[359451637,1746025839897,-155.245476,0.00040175,14]
[359451638,1746025839907,-155.245476,0.00040175,14]
[359451639,1746025839917,-156.152668,0.00040175,14]
[359451640,1746025839928,-156.152668,0.00040175,14]
[359451641,1746025839939,-156.152668,0.00040175,14]
[359451643,1746025839950,-156.152668,0.00040175,14]
[359451644,1746025839961,-68955.2765235,0.00040177,3]
[359451646,1746025839971,-1003.51970665,0.00040177,3]
[359451647,1746025839982,-151.0,0.00040183,2]
[359451648,1746025839991,-500.0,0.00040183,2]
[359451649,1746025840001,-258.475657,0.00040183,2]
[359451650,1746025840011,-203.04410529,0.00040183,2]
[359451651,1746025840021,-151.0,0.00040183,2]
[359451652,1746025840031,-151.0,0.00040183,2]
[359451653,1746025840042,-151.0,0.00040183,2]
[359451654,1746025840052,-151.0,0.00040183,2]
[359451655,1746025840061,-151.0,0.00040183,2]
[359451656,1746025840071,-151.0,0.00040187,14]
[359451657,1746025840080,-151.0,0.00040187,14]
[359451658,1746025840090,-151.0,0.00040187,14]
[359451659,1746025840100,-151.0,0.00040187,14]
[359451660,1746025840110,-151.0,0.00040187,14]
[359451661,1746025840120,-151.0,0.00040187,14]
[359451662,1746025840129,-151.0,0.00040187,14]
[359451663,1746025840143,-151.0,0.00040187,14]
[359451664,1746025840153,-151.0,0.00040187,14]
[359451665,1746025840162,-151.0,0.00040187,14]
[359451666,1746025840172,-151.0,0.00040187,14]
[359451667,1746025840181,-151.0,0.00040187,14]
[359451668,1746025840191,-151.0,0.00040187,14]
[359451669,1746025840201,-151.0,0.00040187,14]
[359451670,1746025840210,-153.246383,0.00040187,14]
[359451671,1746025840220,-1241.312692,0.00040187,2]
[359451672,1746025840230,-1241.312692,0.00040187,2]
[359451673,1746025840240,-1241.312692,0.00040187,2]
[359451674,1746025840250,-1241.312692,0.00040187,2]
[359451675,1746025840259,-151.0,0.00040187,14]
[359451676,1746025840269,-151.0,0.00040187,14]
[359451677,1746025840279,-151.0,0.00040187,14]
[359451678,1746025840289,-151.0,0.00040187,14]
[359451679,1746025840301,-151.0,0.00040187,14]
[359451680,1746025840312,-151.0,0.00040187,14]
[359451681,1746025840322,-151.0,0.00040187,14]
[359451682,1746025840331,-151.0,0.00040187,14]
[359451683,1746025840341,-350.9081,0.00040187,14]
[359451684,1746025840351,-350.9081,0.00040187,14]
[359451685,1746025840360,-350.9081,0.00040187,14]
[359451687,1746025840370,-350.9081,0.00040187,14]
[359451689,1746025840380,-205116.24083364,0.00040187,2]
[359451690,1746025840391,-30247.50652627,0.00040187,3]
[359451691,1746025840401,-6080447.71231736,0.00040188,20]
[359451692,1746025840418,-2099.85863507,0.00040188,20]
[359451693,1746025840432,-25709.33404698,0.00040188,20]
[359451694,1746025841001,-83.75393822,0.00040188,20]
[359451695,1746025841019,-11246.3353615,0.00040188,20]
[359451696,1746025841030,-4315.0,0.00040188,20]
[359451704,1746025843636,-400.0,0.00038356,12]
[359451705,1746025843647,-538.81467612,0.00038356,12]
[359451706,1746025843657,-936.98259004,0.00040188,20]
[359451707,1746025843720,-34.16879632,0.00040188,20]
[359451724,1746025846439,-49.53265862,0.00040188,20]
[359451725,1746025846577,-8959.1389468,0.00040188,20]
[359451726,1746025846589,-14749.9999995,0.00040188,20]
[359451727,1746025846602,-6038.0855098,0.00040188,20]
[359451729,1746025846613,-10183.17286899,0.00040188,20]
[359451767,1746026752121,-689.263522,0.00027397,2]
[359451768,1746026752145,-707.0,0.00032536,2]
[359451769,1746026752166,-1494.61212142,0.00032536,2]
[359451771,1746026758088,-750.38787858,0.00032536,2]
[359451772,1746026758111,-400.0,0.00033162,2]
[359451773,1746026758134,-689.263522,0.00033165,2]
[359451774,1746026758160,-196.539918,0.00034679,2]